{"text_format":"1","workbook":"xlsx","n_sheets":25,"sheets":["Образец","окс","про","вел","сер","пяк","шеп","пзн","фаб","над","кзн","арх","рол","уз","крив","стс","кор","мст","тищ","гор","вас","ги","сел","мск","шад"],"not_rendered":{"charts":0,"images":0,"macros":1,"external_links":0,"defined_names":0,"comments":0,"pivot_tables":0},"unopened":[],"bounds":{"document_bytes":16777216,"sheet_cells":100000,"rows_first":2000,"rows_last":500,"rows_between":2000,"halvings":0,"cell_chars":16384,"cell_head_chars":4096},"cells_cut":0,"cells_raw":0,"read":"whole","date_system":"1900"}

{"sheet":"Образец","index":0,"n_rows":9,"n_cols":5,"rows_kept":9,"cut":false,"hidden":false,"merged":[]}
[0,"Товарный чек №       от                         "]
[null,"Отпущен товар за наличный расчет на сумму:",null,{"$f":"SUM(E:E)","v":0}]
[null,"Скидка составила:",null,{"$f":"ROUNDUP(D2*A1/100,0)","v":0}]
[null,"Стоймость доставки:",null,0]
[null,"Предоплата:",null,0]
[null,"Задолженность:",null,0]
[null,"Итого к оплате:",null,{"$f":"D2+D4+D6-D3-D5","v":0}]
[null,"Количество мест:"]
["№","Наименование","кол","цена","сумма"]

{"sheet":"окс","index":1,"n_rows":9,"n_cols":5,"rows_kept":9,"cut":false,"hidden":false,"merged":[]}
[0,"Товарный чек №       от                         "]
[null,"Отпущен товар за наличный расчет на сумму:",null,{"$f":"SUM(E:E)","v":0}]
[null,"Скидка составила:",null,{"$f":"ROUNDUP(D2*A1/100,0)","v":0}]
[null,"Стоймость доставки:",null,0]
[null,"Предоплата:",null,0]
[null,"Задолженность:",null,0]
[null,"Итого к оплате:",null,{"$f":"D2+D4+D6-D3-D5","v":0}]
[null,"Количество мест:"]
["№","Наименование","кол","цена","сумма"]

{"sheet":"про","index":2,"n_rows":23,"n_cols":5,"rows_kept":23,"cut":false,"hidden":false,"merged":[]}
[0,"Товарный чек №       от                         "]
[null,"Отпущен товар за наличный расчет на сумму:",null,{"$f":"SUM(E:E)","v":5016}]
[null,"Скидка составила:",null,{"$f":"ROUNDUP(D2*A1/100,0)","v":0}]
[null,"Стоймость доставки:",null,0]
[null,"Предоплата:",null,0]
[null,"Задолженность:",null,0]
[null,"Итого к оплате:",null,{"$f":"D2+D4+D6-D3-D5","v":5016}]
[null,"Количество мест:"]
["№","Наименование","кол","цена","сумма"]
[6,"..СЧЕТ-Компрессор AZARD 580",1,1164,{"$f":"D10*C10","v":1164}]
[6,"..СЧЕТ-Освежитель воздуха на дефлектор CITY STYLE Moskow",1,232,232]
[6,"..СЧЕТ-Освежитель воздуха на дефлектор RICH casino",1,292,292]
[6,"..СЧЕТ-Освежитель воздуха на дефлектор RICH originals",1,233,233]
[6,"..СЧЕТ-Освежитель воздуха на панель AIR ISLAND-футляр ваниль",1,141,141]
[6,"..СЧЕТ-Освежитель воздуха на панель DEEP AQUA водяные брызги",1,176,176]
[6,"..СЧЕТ-Освежитель воздуха на панель NANO водяные брызги",1,198,198]
[6,"..СЧЕТ-Освежитель воздуха подвесной VOYAGE сухой мальдивы",1,31,31]
[6,"..СЧЕТ-Освежитель воздуха подвесной СМАЙЛ сухой черный лед",1,22,22]
[6,"..СЧЕТ-Освежитель воздуха-подвеска DISCOBALL секси герл",1,182,182]
[17,"Коврики салонные 2121 резин. АВТОВАЗ",1,883,883]
[16,"Коврики салонные 2170 резин. БРТ",1,550,550]
[23,"Щетка стеклоочистителя 50см CARALL бескаркасная S950",6,113,678]
[23,"Щетка стеклоочистителя 61см CARALL бескаркасная S950",2,117,234]

{"sheet":"вел","index":3,"n_rows":9,"n_cols":5,"rows_kept":9,"cut":false,"hidden":false,"merged":[]}
[0,"Товарный чек №       от                         "]
[null,"Отпущен товар за наличный расчет на сумму:",null,{"$f":"SUM(E:E)","v":0}]
[null,"Скидка составила:",null,{"$f":"ROUNDUP(D2*A1/100,0)","v":0}]
[null,"Стоймость доставки:",null,0]
[null,"Предоплата:",null,0]
[null,"Задолженность:",null,0]
[null,"Итого к оплате:",null,{"$f":"D2+D4+D6-D3-D5","v":0}]
[null,"Количество мест:"]
["№","Наименование","кол","цена","сумма"]

{"sheet":"сер","index":4,"n_rows":17,"n_cols":5,"rows_kept":17,"cut":false,"hidden":false,"merged":[]}
[0,"Товарный чек №       от                         "]
[null,"Отпущен товар за наличный расчет на сумму:",null,{"$f":"SUM(E:E)","v":18960}]
[null,"Скидка составила:",null,{"$f":"ROUNDUP(D2*A1/100,0)","v":0}]
[null,"Стоймость доставки:",null,0]
[null,"Предоплата:",null,0]
[null,"Задолженность:",null,0]
[null,"Итого к оплате:",null,{"$f":"D2+D4+D6-D3-D5","v":18960}]
[null,"Количество мест:"]
["№","Наименование","кол","цена","сумма"]
[16,"Генератор 2110 СТАРТВОЛЬТ (120А) LG 0110",1,3629,{"$f":"D10*C10","v":3629}]
[16,"Патрубки 21213 радиатора LUZAR (4 шт) 01213",2,380,760]
[2,"Радиатор 21214 охлажд.алюм. ДААЗ",1,1726,1726]
[16,"Синхронизатор 2101 Тольятти",4,165,660]
[16,"Стартер 1111 СТАРТВОЛЬТ редукторный LSt 0111",1,2613,2613]
[16,"Стартер 1118 СТАРТВОЛЬТ редукторный LSt 0118",1,2518,2518]
[16,"Стартер 2108 СТАРТВОЛЬТ редукторный LSt 0115",2,2565,5130]
[6,"Шатун 2101 АВТОВАЗ (уп-4)",4,481,1924]

{"sheet":"пяк","index":5,"n_rows":9,"n_cols":5,"rows_kept":9,"cut":false,"hidden":false,"merged":[]}
[0,"Товарный чек №       от                         "]
[null,"Отпущен товар за наличный расчет на сумму:",null,{"$f":"SUM(E:E)","v":0}]
[null,"Скидка составила:",null,{"$f":"ROUNDUP(D2*A1/100,0)","v":0}]
[null,"Стоймость доставки:",null,0]
[null,"Предоплата:",null,0]
[null,"Задолженность:",null,0]
[null,"Итого к оплате:",null,{"$f":"D2+D4+D6-D3-D5","v":0}]
[null,"Количество мест:"]
["№","Наименование","кол","цена","сумма"]

{"sheet":"шеп","index":6,"n_rows":58,"n_cols":5,"rows_kept":58,"cut":false,"hidden":false,"merged":[]}
[0,"Товарный чек №       от                         "]
[null,"Отпущен товар за наличный расчет на сумму:",null,{"$f":"SUM(E:E)","v":39454}]
[null,"Скидка составила:",null,{"$f":"ROUNDUP(D2*A1/100,0)","v":0}]
[null,"Стоймость доставки:",null,0]
[null,"Предоплата:",null,0]
[null,"Задолженность:",null,0]
[null,"Итого к оплате:",null,{"$f":"D2+D4+D6-D3-D5","v":39454}]
[null,"Количество мест:"]
["№","Наименование","кол","цена","сумма"]
[5,"Балка подвески 2112 НАЧАЛО",1,903,{"$f":"D10*C10","v":903}]
[16,"Брызговик 2110 задн. (2 шт) БРТ ремк-т № 139",1,207,207]
[16,"Брызговик 2110 перед. (2 шт) БРТ ремк-т № 138",1,200,200]
[22,"Брызговик 2115 перед. (2 шт) Самара",1,118,118]
[17,"Брызговик двигателя 2108 левый",2,135,270]
[17,"Брызговик двигателя 2108 правый",2,159,318]
[6,"Ветровик 1118 AZARD накладной",1,287,287]
[2,"Глушитель 2170 Тольятти",1,793,793]
[2,"Глушитель 2172 Тольятти",1,793,793]
[17,"Замок капота 2110 ДААЗ",2,113,226]
[5,"Защита картера 2108 НАЧАЛО",1,495,495]
[5,"Защита картера 2110 НАЧАЛО усиленная",1,817,817]
[8,"Катафот крышки багажника 2111 Б/Н",1,305,305]
[2,"Корпус задн.фонаря 1118 левый ДААЗ",1,987,987]
[11,"Корпус задн.фонаря 2110 правый угол ФОРМУЛА СВЕТА",1,562,562]
[17,"Корпус фильтра воздушного 11184 ВИС",1,694,694]
[17,"Крышка бардачка 2108 в сборе",1,279,279]
[2,"Облицовка динамика 21083 (2 шт)",2,126,252]
[17,"Опора шаровая 2108 АВТОВАЗ",2,269,538]
[2,"Подлокотник 2106 (4 шт)",1,454,454]
[16,"Радиатор 21073 охлажд.алюм. LUZAR 01073",1,1558,1558]
[17,"Радиатор 2110 отопит.алюм. ДААЗ",1,624,624]
[17,"Радиатор 2111 отопит.алюм. ДААЗ",1,649,649]
[17,"Радиатор 2112 охлажд.алюм. ДААЗ",2,1359,2718]
[2,"Радиатор 21213 охлажд.алюм. ДААЗ",1,1591,1591]
[16,"Радиатор 2170 охлажд.алюм. LUZAR 0127",3,1463,4389]
[17,"Резонатор 1118 АВТОВАЗ",1,1461,1461]
[2,"Резонатор 21073 Тольятти",1,569,569]
[2,"Резонатор 2114 Тольятти евро3 с виброкомпенсатором",1,1248,1248]
[16,"Решетка радиатора 2107 Тольятти хром",2,264,528]
[2,"Решетка радиатора 2110 Тольятти н/о",2,205,410]
[2,"Решетка радиатора 2110 Тольятти с/о",2,180,360]
[17,"Решетка радиатора 2121 Тольятти черная",1,225,{"$f":"D42*C42","v":225}]
[2,"Ручка 2109 наружняя ЕВРО РЫСЬ (к-т, 4 шт)",1,1178,1178]
[6,"Спойлер капота (мухобойка) 1118 AZARD",1,273,273]
[6,"Спойлер капота (мухобойка) 2110 AZARD",2,280,560]
[2,"Спойлер капота (мухобойка) 2115 AZARD",2,320,640]
[2,"Труба приемная 2108 Тольятти",1,282,282]
[16,"Уплотнитель 2101 крышки багажника БРТ",8,144,1152]
[16,"Уплотнитель 2107 двери БРТ (4 шт) ремк-т № 167",2,565,1130]
[16,"Уплотнитель 2108 ветрового стекла БРТ",1,702,702]
[6,"Уплотнитель 2110 ветрового стекла УЭТ (верхний+нижний)",2,266,532]
[16,"Уплотнитель 2110 двери левый БРТ",4,220,880]
[16,"Уплотнитель 2110 двери правый БРТ",4,220,880]
[16,"Уплотнитель 2112 крышки багажника БРТ",1,174,174]
[2,"Фара 2115 левая BOSCH желтый указ.поворота 676512053-01",1,1673,1673]
[2,"Фара 2115 правая BOSCH желтый указ.поворота 676512054-01",1,1665,1665]
[11,"Фара противотуманная 2110 КНР (лев+прав)",5,309,1545]
[2,"Хомут глушителя 2101 РАДА (48)",20,18,360]

{"sheet":"пзн","index":7,"n_rows":9,"n_cols":5,"rows_kept":9,"cut":false,"hidden":false,"merged":[]}
[0,"Товарный чек №       от                         "]
[null,"Отпущен товар за наличный расчет на сумму:",null,{"$f":"SUM(E:E)","v":0}]
[null,"Скидка составила:",null,{"$f":"ROUNDUP(D2*A1/100,0)","v":0}]
[null,"Стоймость доставки:",null,0]
[null,"Предоплата:",null,0]
[null,"Задолженность:",null,0]
[null,"Итого к оплате:",null,{"$f":"D2+D4+D6-D3-D5","v":0}]
[null,"Количество мест:"]
["№","Наименование","кол","цена","сумма"]

{"sheet":"фаб","index":8,"n_rows":97,"n_cols":5,"rows_kept":97,"cut":false,"hidden":false,"merged":[]}
[0,"Товарный чек №       от                         "]
[null,"Отпущен товар за наличный расчет на сумму:",null,{"$f":"SUM(E:E)","v":27480}]
[null,"Скидка составила:",null,{"$f":"ROUNDUP(D2*A1/100,0)","v":0}]
[null,"Стоймость доставки:",null,0]
[null,"Предоплата:",null,0]
[null,"Задолженность:",null,0]
[null,"Итого к оплате:",null,{"$f":"D2+D4+D6-D3-D5","v":27480}]
[null,"Количество мест:"]
["№","Наименование","кол","цена","сумма"]
[11,"А/лампа 12-1,1 б/ц МАЯК 1 SMD белая (уп-10)",10,12,{"$f":"D10*C10","v":120}]
[11,"А/лампа 12-1,1 б/ц МАЯК в патроне 1 LED белая (уп-10)",4,17,68]
[6,"А/лампа 12-1,2 б/ц NORD YADA 1 LED белая 900281 (уп-10)",5,9,45]
[6,"А/лампа 12-1,2 б/ц NORD YADA 1 LED белая в патроне 900282 (уп-10)",4,18,72]
[16,"А/лампа 12-1,5 б/ц СТАРТВОЛЬТ в патроне",10,19,190]
[6,"А/лампа 12-10 салон. NORD YADA (31мм) 901998",4,6,24]
[6,"А/лампа 12-10 салон. NORD YADA (36мм) 800043",4,6,24]
[6,"А/лампа 12-10 салон. NORD YADA (38мм) 901999",4,6,24]
[15,"А/лампа 12-10 салон. NORD YADA (41мм) 902000",10,7,70]
[6,"А/лампа 12-16 б/ц NORD YADA 902249",4,9,36]
[11,"А/лампа 12-18 б/ц МАЯК 61228",4,18,72]
[6,"А/лампа 12-2 МАЯК",9,4,36]
[1,"А/лампа 12-21 GL 12 LED белая",4,32,128]
[1,"А/лампа 12-21+5 GL 12 LED белая",4,32,128]
[1,"А/лампа 12-21+5 GL 12 LED красная",4,32,128]
[6,"А/лампа 12-4 NORD YADA 1 LED белая 900284",10,11,110]
[6,"А/лампа 12-5 б/ц NORD YADA 1 LED белая 900288 (уп-10)",10,10,100]
[11,"А/лампа 12-5 б/ц МАЯК 1 LED белая",4,10,40]
[2,"А/лампа 12-5 б/ц МАЯК 9 SMD белая",2,69,138]
[6,"А/лампа 12-5 салон. NORD YADA (36мм) 6 LED белая 900302",4,23,92]
[1,"А/лампа 12-5 салон. OSRAM (41мм) 6413",10,20,200]
[15,"А/лампа 12-5 салон. SKYWAY (39мм) 9 SMD белая SJ-0950A",4,44,176]
[15,"А/лампа 12-КЛУ-5 МАЯК люминисцентная",2,64,128]
[6,"А/лампа 12-КЛУ-7 NORD YADA люминисцентная 903117",2,47,94]
[6,"А/лампа 12-КЛУ-9 NORD YADA люминисцентная 903095",2,50,100]
[15,"А/лампа H1 12-55 NORD YADA 800002",10,40,400]
[15,"А/лампа H1 12-55 NORD YADA SUPER WHITE 800016",4,49,196]
[15,"А/лампа H27 МАЯК",3,138,414]
[19,"А/лампа H4 12-60/55-43 МАЯК 52420 (уп-10)",10,75,750]
[19,"Автошампунь KERRY для б/контактной мойки 1л KR-Y200-F100",1,97,97]
[15,"Автошампунь АСТРОХИМ-спрей с воском МОЙКА БЕЗ ВОДЫ 500мл",1,85,85]
[15,"Автошампунь ХОРС для б/контактной мойки 1л",1,83,83]
[15,"Герметик-прокладка Казань 180гр",5,64,{"$f":"D42*C42","v":320}]
[15,"Герметик-прокладка Казань 60гр",5,31,155]
[1,"Камера задн.вида HX-GEN-002",1,679,679]
[15,"Коврики салонные УНИВЕРСАЛЬНЫЕ с перемычкой ворс. SKYWAY черный TS8003S-5",1,731,731]
[15,"Лопата для снега AIRLINE телескопическая AB-S-01",1,472,472]
[19,"Масло мотор.синт. 5W-30 CASTROL Magnatec AP 4л",1,1622,1622]
[19,"Масло мотор.синт. 5W-30 ELF Evolution 5л",1,1891,1891]
[19,"Масло мотор.синт. 5W-30 ENEOS Gasoline 1л",1,428,428]
[19,"Масло мотор.синт. 5W-30 HONDA SN 4л",1,1904,1904]
[19,"Масло мотор.синт. 5W-30 MANNOL Energy ОPEL 5л",1,1410,1410]
[19,"Масло мотор.синт. 5W-30 MOBIL-1 Super 3000 X-1 Formula FE 4л",1,1155,1155]
[19,"Масло мотор.синт. 5W-30 NESTE City Pro 1л",1,373,373]
[19,"Масло мотор.синт. 5W-30 SHELL Helix 4л",1,1232,1232]
[19,"Масло мотор.синт. 5W-30 TOYOTA SN 4л",1,1581,1581]
[19,"Масло мотор.синт. 5W-40 CASTROL Magnatec А3/B4 4л",1,1578,1578]
[9,"Масло мотор.синт. 5W-40 NGN Gold SM/CF 1л",1,379,379]
[9,"Масло мотор.синт. 5W-40 NGN Gold SM/CF 4л",1,1436,1436]
[6,"Освежитель воздуха на дефлектор DIFFEREN тропическая ночь",1,192,192]
[6,"Освежитель воздуха на дефлектор DIFFEREN яблочный фреш",1,192,192]
[6,"Освежитель воздуха на дефлектор DIFFEREN янтарная луна",1,192,192]
[6,"Освежитель воздуха подвесной ALIBI FRESCO дер.бочонок черная линия",3,91,273]
[19,"Присадка в масло KERRY стоп-дым KR-375",1,130,130]
[15,"Присадка в масло АСТРОХИМ для повышения компрессии 300мл",1,148,148]
[15,"Присадка в масло АСТРОХИМ стоп-дым",1,157,157]
[19,"Присадка в топливо АСТРОХИМ вытеснитель влаги 300мл",1,83,83]
[17,"Разъем фары H-1 с проводом CARGEN AX-339",5,15,75]
[6,"Разъем фары H-11 с проводом NORD YADA 902647",2,30,60]
[8,"Разъем фары H-4 с проводом",2,20,40]
[15,"Разъем фары H-7 с проводом ДИАЛУЧ",2,32,64]
[15,"Разъем фары HB4 с проводом (уп-5)",1,80,80]
[16,"Резинка щетки стеклоочистителя 51см БРТ",5,19,95]
[7,"Утеплитель двигателя 125*60см ПРЕСТИЖ",1,357,357]
[2,"Фильтр масляный 2105 БЕЛМАГ",2,96,{"$f":"D74*C74","v":192}]
[19,"Фильтр масляный 2108 САЛЮТ",1,120,120]
[12,"Фильтр масляный 2112 ЦИТРОН 229",1,132,132]
[2,"Фильтр масляный 412 Новосибирск",1,42,42]
[9,"Фильтр масляный C-809 LYNX LC-562",1,205,205]
[2,"Фильтр масляный DAEWOO Lanos FINWHALE LF402",1,110,110]
[6,"Хомут-стяжка 2,2*60 NORD YADA белая (уп-100)",100,0.3,30]
[6,"Хомут-стяжка 2,5*100 NORD YADA черная (уп-100)",100,1,100]
[6,"Хомут-стяжка 2,5*200 NORD YADA черная (уп-100)",100,1,100]
[6,"Хомут-стяжка 3,5*100 NORD YADA черная (уп-100)",100,0.5,50]
[7,"Хомут-стяжка 3,6*200 NCT белая (100 шт)",1,64,64]
[6,"Хомут-стяжка 3,6*200 NORD YADA черная (уп-100)",100,1,100]
[6,"Хомут-стяжка 3,6*300 NORD YADA черная (уп-100)",100,1.8,180]
[7,"Хомут-стяжка 4,8*200 NCT белая (100 шт)",1,82,82]
[23,"Щетка стеклоочистителя 33см CARALL бескаркасная S950",2,104,208]
[6,"Щетка стеклоочистителя 36см ZEBRA бескаркасная",2,110,220]
[23,"Щетка стеклоочистителя 38см CARALL бескаркасная S950",2,107,214]
[23,"Щетка стеклоочистителя 41см CARALL бескаркасная S950",2,109,218]
[23,"Щетка стеклоочистителя 45см CARALL бескаркасная S950",2,111,222]
[23,"Щетка стеклоочистителя 50см CARALL бескаркасная S950",2,113,226]
[23,"Щетка стеклоочистителя 53см CARALL бескаркасная S950",2,114,228]
[23,"Щетка стеклоочистителя 55см CARALL бескаркасная S950",1,115,115]
[23,"Щетка стеклоочистителя 61см CARALL бескаркасная S950",2,117,234]
[23,"Щетка стеклоочистителя 65см CARALL бескаркасная S950",2,118,236]

{"sheet":"над","index":9,"n_rows":31,"n_cols":5,"rows_kept":31,"cut":false,"hidden":false,"merged":[]}
[0,"Товарный чек №       от                         "]
[null,"Отпущен товар за наличный расчет на сумму:",null,{"$f":"SUM(E:E)","v":42385}]
[null,"Скидка составила:",null,{"$f":"ROUNDUP(D2*A1/100,0)","v":0}]
[null,"Стоймость доставки:",null,0]
[null,"Предоплата:",null,0]
[null,"Задолженность:",null,0]
[null,"Итого к оплате:",null,{"$f":"D2+D4+D6-D3-D5","v":42385}]
[null,"Количество мест:"]
["№","Наименование","кол","цена","сумма"]
[16,"Генератор 21214 КЗАТЭ (110А) 9412.3701-03",1,4670,{"$f":"D10*C10","v":4670}]
[12,"Генератор 2123 КЗАТЭ (80А) 9402.3701-01",1,4007,4007]
[16,"Домкрат 1,3т ромбический Ульяновск с выс.площ. УРД-09",2,462,924]
[16,"Домкрат 1т ромбический Ульяновск УРД-01",5,436,2180]
[17,"Карбюратор 2107-20 ДААЗ",1,3674,3674]
[17,"Карбюратор 21083 ДААЗ",1,4223,4223]
[16,"Патрубки 2170 отопителя LUZAR (2 шт) 0127",2,171,342]
[5,"Реле 702 контроля зарядки 2101",5,60,300]
[2,"Реле втягивающее 2110 ELDIX",2,586,1172]
[2,"Ролик 2108 натяжения ремня Вологда",8,385,3080]
[5,"Рычаг маятниковый 21213 Гусев",4,409,1636]
[16,"Фильтр воздушный 2101 САЛЮТ",10,77,770]
[19,"Фильтр воздушный 2112 САЛЮТ",10,141,1410]
[16,"Фильтр топливный 2110 САЛЮТ",10,158,1580]
[16,"Фильтр топливный 2123 САЛЮТ",10,158,1580]
[12,"Эл.двигат.отопит. 1118 КЗАЭ 362.3780",1,1239,1239]
[2,"Эл.двигат.отопит. 1118/2170 LUZAR конд.Panasonic 01182",1,1852,1852]
[5,"Эл.двигат.отопит. 2101 ПЕКАР с крыльчаткой",4,535,2140]
[12,"Эл.двигат.отопит. 2108 КЗАЭ 45.3730",2,765,1530]
[12,"Эл.двигат.отопит. 2108 КЗАЭ в сборе",2,929,1858]
[16,"Эл.двигат.отопит. 2110 LUZAR 0110",1,974,974]
[31,"Эл.двигат.отопит. 2123 КЗАЭ 36.3780",1,1244,1244]

{"sheet":"кзн","index":10,"n_rows":9,"n_cols":5,"rows_kept":9,"cut":false,"hidden":false,"merged":[]}
[0,"Товарный чек №       от                         "]
[null,"Отпущен товар за наличный расчет на сумму:",null,{"$f":"SUM(E:E)","v":0}]
[null,"Скидка составила:",null,{"$f":"ROUNDUP(D2*A1/100,0)","v":0}]
[null,"Стоймость доставки:",null,0]
[null,"Предоплата:",null,0]
[null,"Задолженность:",null,0]
[null,"Итого к оплате:",null,{"$f":"D2+D4+D6-D3-D5","v":0}]
[null,"Количество мест:"]
["№","Наименование","кол","цена","сумма"]

{"sheet":"арх","index":11,"n_rows":132,"n_cols":5,"rows_kept":132,"cut":false,"hidden":false,"merged":[]}
[0,"Товарный чек №       от                         "]
[null,"Отпущен товар за наличный расчет на сумму:",null,{"$f":"SUM(E:E)","v":72403}]
[null,"Скидка составила:",null,{"$f":"ROUNDUP(D2*A1/100,0)","v":0}]
[null,"Стоймость доставки:",null,0]
[null,"Предоплата:",null,0]
[null,"Задолженность:",null,0]
[null,"Итого к оплате:",null,{"$f":"D2+D4+D6-D3-D5","v":72403}]
[null,"Количество мест:"]
["№","Наименование","кол","цена","сумма"]
[6,"..СЧЕТ-А/лампа H1 12-55 NORD YADA (2 шт) в блистере 902227",1,66,{"$f":"D10*C10","v":66}]
[6,"..СЧЕТ-А/лампа H3 12-55 NORD YADA (2 шт) в блистере 902229",1,66,66]
[6,"..СЧЕТ-А/лампа H4 12-60/55-43 NORD YADA (2 шт) в блистере 902231",2,171,342]
[6,"..СЧЕТ-Адаптер ремня безопасности APV детский (винил) красный",1,137,137]
[6,"..СЧЕТ-Адаптер ремня безопасности APV детский (винил) синий",1,137,137]
[6,"..СЧЕТ-Антифриз 10л красный Дзержинск",1,541,541]
[6,"..СЧЕТ-Антифриз 10л красный Дзержинск",2,541,1082]
[6,"..СЧЕТ-Ветровик 2109 VORON GLASS накладной",1,357,357]
[6,"..СЧЕТ-Ветровик 2110 VORON GLASS накладной",1,467,467]
[6,"..СЧЕТ-Коврики салонные 2108 резин. AILERON",1,753,753]
[6,"..СЧЕТ-Кольца поршневые 21011 (79,8) АВТОВАЗ",1,530,530]
[6,"..СЧЕТ-Опора шаровая 2108 ЗА РУЛЕМ",3,285,855]
[6,"..СЧЕТ-Освежитель воздуха на дефлектор ALIBI SENSO новая машина",1,107,107]
[6,"..СЧЕТ-Освежитель воздуха на дефлектор IMPULSE морской прибой",1,176,176]
[6,"..СЧЕТ-Освежитель воздуха на дефлектор IMPULSE тропическая ночь",1,176,176]
[6,"..СЧЕТ-Освежитель воздуха на дефлектор PRETTY ваниль",1,161,161]
[6,"..СЧЕТ-Освежитель воздуха на дефлектор PRETTY СК сквош",1,183,183]
[6,"..СЧЕТ-Освежитель воздуха на панель CIEL PREMIUM LUXURY цветы",1,198,198]
[6,"..СЧЕТ-Освежитель воздуха на панель CIEL океан",1,198,198]
[6,"..СЧЕТ-Освежитель воздуха на панель NANO душистая ваниль",1,198,198]
[6,"..СЧЕТ-Освежитель воздуха подвесной 5000рублей сухой ваниль",1,25,25]
[6,"..СЧЕТ-Освежитель воздуха подвесной AQUA SPLASH сухой прохладный ручей",1,29,29]
[6,"..СЧЕТ-Освежитель воздуха подвесной BE FRESH сухой новая машина",1,29,29]
[6,"..СЧЕТ-Освежитель воздуха подвесной BE FRESH сухой цветок сакуры",1,29,29]
[6,"..СЧЕТ-Освежитель воздуха подвесной FRESHCO COFFEE мешочек горячий шоколад",1,141,141]
[6,"..СЧЕТ-Освежитель воздуха подвесной FRESHCO COFFEE мешочек капучино",1,141,141]
[6,"..СЧЕТ-Освежитель воздуха подвесной FRESHCO SEA SALT мешочек ель",1,143,143]
[6,"..СЧЕТ-Освежитель воздуха подвесной VOYAGE сухой нью-йорк",1,31,31]
[6,"..СЧЕТ-Освежитель воздуха подвесной ЁЛКИ-МОТАЛКИ сухой ваниль",1,22,22]
[6,"..СЧЕТ-Освежитель воздуха подвесной КОРОНА ИМПЕРИИ мембранный император",1,130,130]
[6,"..СЧЕТ-Освежитель воздуха подвесной ТЕРРИТОРИЯ МУЖЧИН сухой океанский бриз",1,41,41]
[6,"..СЧЕТ-Освежитель воздуха-подвеска БИЛЬЯРДНЫЕ ШАРЫ",1,91,91]
[6,"..СЧЕТ-Освежитель воздуха-подвеска БУТСА черная линия",1,116,{"$f":"D42*C42","v":116}]
[6,"..СЧЕТ-Очиститель интерьера DRI-KLEEN пенный аэрозоль 500мл",1,151,151]
[6,"..СЧЕТ-Подш.ступ. 2108 задн. АВТОВАЗ 256706",2,548,1096]
[6,"..СЧЕТ-Ручка 2109 наружняя ЕВРО AZARD черный (к-т, 4 шт)",1,820,820]
[6,"..СЧЕТ-Ручка 2110 наружняя ЕВРО РЫСЬ (к-т, 4 шт)",1,1011,1011]
[6,"..СЧЕТ-Салфетка-замша большая CITYUP СА-221",1,83,83]
[6,"..СЧЕТ-Спойлер капота (мухобойка) 2107 AZARD",1,260,260]
[6,"..СЧЕТ-Спойлер капота (мухобойка) 2115 VORON GLASS еврокрепеж",1,287,287]
[6,"..СЧЕТ-Спойлер капота (мухобойка) 2170 VORON GLASS еврокрепеж",1,337,337]
[6,"..СЧЕТ-Тосол 10л Дзержинск",1,483,483]
[6,"..СЧЕТ-Трос сцепления 2110 БЕЛМАГ",3,214,642]
[6,"..СЧЕТ-Фильтр масляный 2108 САЛЮТ",7,120,840]
[6,"..СЧЕТ-Ходовые огни WML-3061",1,198,198]
[6,"..СЧЕТ-Чехлы УНИВЕРСАЛЬНЫЕ AZARD-Hunter полиэстер (синий)",1,1741,1741]
[6,"..СЧЕТ-Щетка стеклоочистителя 36см ZEBRA бескаркасная",2,110,220]
[6,"..СЧЕТ-Щетка стеклоочистителя 41см WF бескаркасная",3,108,324]
[6,"..СЧЕТ-Щетка стеклоочистителя 60см WF бескаркасная",1,132,132]
[6,".РЕАЛ-Адаптер ремня безопасности APV детский (винил) красный",1,137,137]
[6,".РЕАЛ-Адаптер ремня безопасности APV детский (винил) синий",1,137,137]
[6,".РЕАЛ-Адаптер ремня безопасности APV детский (винил) черный",1,137,137]
[6,".РЕАЛ-Блок предохр. и реле 21073 АВАР 521",1,1785,1785]
[6,".РЕАЛ-Блок предохр. и реле 2108 с/о (стар.пред.)",1,2431,2431]
[6,".РЕАЛ-Блок управления отопителя 2110",1,1001,1001]
[6,".РЕАЛ-Ветровик 2107 AZARD накладной",2,270,540]
[6,".РЕАЛ-Ветровик 2121 AZARD вставной",1,270,270]
[6,".РЕАЛ-Ветровик 2123 AZARD накладной",1,346,346]
[6,".РЕАЛ-Коврики салонные 2108 резин. AILERON",1,753,753]
[6,".РЕАЛ-Компрессор ZORK 30л/мин без упак.",1,521,521]
[6,".РЕАЛ-Опора шаровая 2101 верх. ЗА РУЛЕМ",6,280,1680]
[6,".РЕАЛ-Опора шаровая 2101 нижн. ЗА РУЛЕМ",10,280,2800]
[6,".РЕАЛ-Опора шаровая 2108 ЗА РУЛЕМ",7,285,1995]
[6,".РЕАЛ-Освежитель воздуха на дефлектор IMPULSE морской прибой",1,215,215]
[6,".РЕАЛ-Освежитель воздуха на дефлектор IMPULSE тропическая ночь",1,215,{"$f":"D74*C74","v":215}]
[6,".РЕАЛ-Освежитель воздуха на панель CIEL океан",2,198,396]
[6,".РЕАЛ-Освежитель воздуха на панель NANO тропическая ночь",1,230,230]
[6,".РЕАЛ-Освежитель воздуха подвесной 100$ сухой черный лед",2,30,60]
[6,".РЕАЛ-Освежитель воздуха подвесной 5000рублей сухой черный лед",2,30,60]
[6,".РЕАЛ-Освежитель воздуха подвесной ALIBI AUTO гелевый антитабак",1,71,71]
[6,".РЕАЛ-Освежитель воздуха подвесной ALIBI AUTO гелевый ваниль",1,71,71]
[6,".РЕАЛ-Освежитель воздуха подвесной ALIBI AUTO гелевый новая машина",1,71,71]
[6,".РЕАЛ-Освежитель воздуха подвесной ALIBI AUTO гелевый океан",1,71,71]
[6,".РЕАЛ-Освежитель воздуха подвесной ALIBI FRESCO дер.бочонок антитабак",1,91,91]
[6,".РЕАЛ-Освежитель воздуха подвесной ALIBI FRESCO дер.бочонок бриз",1,91,91]
[6,".РЕАЛ-Освежитель воздуха подвесной ALIBI FRESCO дер.бочонок ваниль",1,91,91]
[6,".РЕАЛ-Освежитель воздуха подвесной ALIBI FRESCO дер.бочонок новая машина",1,91,91]
[6,".РЕАЛ-Освежитель воздуха подвесной ALIBI FRESCO дер.бочонок парфюм",1,91,91]
[6,".РЕАЛ-Освежитель воздуха подвесной ALIBI FRESCO дер.бочонок секси",1,91,91]
[6,".РЕАЛ-Освежитель воздуха подвесной ALIBI FRESCO дер.бочонок черная линия",1,91,91]
[6,".РЕАЛ-Освежитель воздуха подвесной CONTEX сухой Orgasm Tester",1,60,60]
[6,".РЕАЛ-Освежитель воздуха подвесной CONTEX сухой Sex First",1,60,60]
[6,".РЕАЛ-Освежитель воздуха подвесной CONTEX сухой Sex On Board",1,60,60]
[6,".РЕАЛ-Освежитель воздуха подвесной CONTEX сухой Sex Queen",1,60,60]
[6,".РЕАЛ-Освежитель воздуха подвесной CONTEX сухой Warning",1,60,60]
[6,".РЕАЛ-Освежитель воздуха подвесной FRESHCO COFFEE мешочек ваниль и кофе",1,141,141]
[6,".РЕАЛ-Освежитель воздуха подвесной FRESHCO COFFEE мешочек горячий шоколад",1,141,141]
[6,".РЕАЛ-Освежитель воздуха подвесной FRESHCO COFFEE мешочек домашнее печенье",1,141,141]
[6,".РЕАЛ-Освежитель воздуха подвесной FRESHCO COFFEE мешочек пина колада",1,141,141]
[6,".РЕАЛ-Освежитель воздуха подвесной FRESHCO SEA SALT мешочек ель",1,143,143]
[6,".РЕАЛ-Освежитель воздуха подвесной LOVELY дикая орхидея",1,248,248]
[6,".РЕАЛ-Освежитель воздуха подвесной VOYAGE сухой нью-йорк",1,31,31]
[6,".РЕАЛ-Освежитель воздуха подвесной VOYAGE сухой с-петербург",1,31,31]
[6,".РЕАЛ-Освежитель воздуха подвесной КОРОНА ИМПЕРИИ мембранный монарх",1,130,130]
[6,".РЕАЛ-Освежитель воздуха-подвеска БИЛЬЯРДНЫЕ ШАРЫ новая машина",1,91,91]
[6,".РЕАЛ-Освежитель воздуха-подвеска БОКСЕРСКИЕ ПЕРЧАТКИ новая машина",1,153,153]
[6,".РЕАЛ-Освежитель воздуха-подвеска БУТСА черная линия",1,118,{"$f":"D106*C106","v":118}]
[6,".РЕАЛ-Очиститель интерьера DRI-KLEEN пенный аэрозоль 500мл",1,151,151]
[6,".РЕАЛ-Патрубки 2105 радиатора (медь) LUZAR (4 шт) 0105с",1,377,377]
[6,".РЕАЛ-Патрубки 21073 радиатора LUZAR (4 шт) 01073",1,391,391]
[6,".РЕАЛ-Патрубки 2170 отопителя LUZAR (2 шт) 0127",1,172,172]
[6,".РЕАЛ-Подш.ступ. 2108 задн. LIGA",1,385,385]
[6,".РЕАЛ-Предохранители 2101 цилиндрические NORD YADA 900509",11,21,231]
[6,".РЕАЛ-Пылесос AIRLINE VCA-01",1,1133,1133]
[6,".РЕАЛ-Распред.зажиг. 2103 б/к СОАТЭ 038.3706",1,959,959]
[6,".РЕАЛ-Реле универсальное 4-х контактное ЭМИ",10,36,360]
[6,".РЕАЛ-Ролик 2108 натяжения ремня LGR",4,253,1012]
[6,".РЕАЛ-Ролик 2112 опорный АВТОВАЗ",4,469,1876]
[6,".РЕАЛ-Ручка 2109 наружняя ЕВРО AZARD кварц (к-т, 4 шт)",1,898,898]
[6,".РЕАЛ-Ручка 2109 наружняя ЕВРО AZARD черный (к-т, 4 шт)",1,820,820]
[6,".РЕАЛ-Ручка 2110 наружняя ЕВРО AZARD черный (к-т, 4 шт)",1,658,658]
[6,".РЕАЛ-Ручка 2110 наружняя ЕВРО РЫСЬ (к-т, 4 шт)",1,1011,1011]
[6,".РЕАЛ-Спойлер капота (мухобойка) 2115 VORON GLASS еврокрепеж",2,312,624]
[6,".РЕАЛ-Фонарь задний 2110 TORINO тонир.хрусталь (лев+прав) DL5267",2,1899,3798]
[6,".РЕАЛ-Фонарь задний 2115 TORINO карбон.корпус (лев+прав) DL5271",2,1899,3798]
[6,".РЕАЛ-Чехлы УНИВЕРСАЛЬНЫЕ AZARD-Pride велюр (серый)",1,2115,2115]
[6,".РЕАЛ-Чехлы УНИВЕРСАЛЬНЫЕ PSV-Discovery Crocodile эко/кожа (черный)",1,2985,2985]
[6,".РЕАЛ-Чехлы УНИВЕРСАЛЬНЫЕ PSV-Triumf festival (черный/серебро)",1,1995,1995]
[6,".РЕАЛ-Чехлы УНИВЕРСАЛЬНЫЕ SENATOR-Alabama жаккард (красный)",1,1769,1769]
[6,".РЕАЛ-Чехлы УНИВЕРСАЛЬНЫЕ SENATOR-Alabama жаккард (серый)",1,1769,1769]
[6,".РЕАЛ-Чехлы УНИВЕРСАЛЬНЫЕ SENATOR-Arizona жаккард (серый)",1,2714,2714]
[6,".РЕАЛ-Чехлы УНИВЕРСАЛЬНЫЕ SENATOR-Kanzas жаккард (красный)",1,2703,2703]
[6,".РЕАЛ-Чехлы УНИВЕРСАЛЬНЫЕ SENATOR-Nebraska жаккард (черный)",1,2937,2937]

{"sheet":"рол","index":12,"n_rows":9,"n_cols":5,"rows_kept":9,"cut":false,"hidden":false,"merged":[]}
[0,"Товарный чек №       от                         "]
[null,"Отпущен товар за наличный расчет на сумму:",null,{"$f":"SUM(E:E)","v":0}]
[null,"Скидка составила:",null,{"$f":"ROUNDUP(D2*A1/100,0)","v":0}]
[null,"Стоймость доставки:",null,0]
[null,"Предоплата:",null,0]
[null,"Задолженность:",null,0]
[null,"Итого к оплате:",null,{"$f":"D2+D4+D6-D3-D5","v":0}]
[null,"Количество мест:"]
["№","Наименование","кол","цена","сумма"]

{"sheet":"уз","index":13,"n_rows":21,"n_cols":5,"rows_kept":21,"cut":false,"hidden":false,"merged":[]}
[0,"Товарный чек №       от                         "]
[null,"Отпущен товар за наличный расчет на сумму:",null,{"$f":"SUM(E:E)","v":17741}]
[null,"Скидка составила:",null,{"$f":"ROUNDUP(D2*A1/100,0)","v":0}]
[null,"Стоймость доставки:",null,0]
[null,"Предоплата:",null,0]
[null,"Задолженность:",null,0]
[null,"Итого к оплате:",null,{"$f":"D2+D4+D6-D3-D5","v":17741}]
[null,"Количество мест:"]
["№","Наименование","кол","цена","сумма"]
[16,"А/лампа H4 12-60/55-43 СТАРТВОЛЬТ",20,67,{"$f":"D10*C10","v":1340}]
[15,"А/лампа H7 12-55 NORD YADA 800006",20,73,1460]
[9,"Датчик заднего хода 21074 ERA 330628",5,112,560]
[6,"Кнопка двери 2101-08",20,4,80]
[5,"Колодки 2108 перед.торм. DAFMI",5,299,1495]
[16,"Колодки 2108 перед.торм. TRIALLI",5,282,1410]
[16,"Колпачки маслоотраж. ГАЗ TRIALLI (8 шт)",3,198,594]
[2,"Крестовина рулевая ГАЗ-3302 TRIALLI 902",5,108,540]
[16,"Насос водяной ГАЗ-33027 дв.4216 LUZAR 03216",2,1216,2432]
[16,"Насос водяной ГАЗ-33027 дв.4216 LUZAR евро4 03217",2,1321,2642]
[16,"Насос водяной дополнительный 12V СТАРТВОЛЬТ электро 18 мм. VPM 03780",2,751,1502]
[16,"Радиатор ГАЗель Next дв.Cummins охлажд.алюм. LUZAR 0322b",1,3686,3686]

{"sheet":"крив","index":14,"n_rows":34,"n_cols":5,"rows_kept":34,"cut":false,"hidden":false,"merged":[]}
[0,"Товарный чек №       от                         "]
[null,"Отпущен товар за наличный расчет на сумму:",null,{"$f":"SUM(E:E)","v":3359}]
[null,"Скидка составила:",null,{"$f":"ROUNDUP(D2*A1/100,0)","v":0}]
[null,"Стоймость доставки:",null,0]
[null,"Предоплата:",null,0]
[null,"Задолженность:",null,0]
[null,"Итого к оплате:",null,{"$f":"D2+D4+D6-D3-D5","v":3359}]
[null,"Количество мест:"]
["№","Наименование","кол","цена","сумма"]
[6,"Освежитель воздуха на дефлектор IMPULSE морской прибой",1,215,{"$f":"D10*C10","v":215}]
[6,"Освежитель воздуха на дефлектор IMPULSE тропическая ночь",1,215,215]
[6,"Освежитель воздуха на дефлектор IMPULSE черный линия",1,215,215]
[6,"Освежитель воздуха на дефлектор PRETTY орхидея",1,228,228]
[6,"Освежитель воздуха на панель NANO новая машина",1,230,230]
[6,"Освежитель воздуха на панель NANO океанский бриз",1,230,230]
[6,"Освежитель воздуха на панель NANO тропический цветок",1,230,230]
[6,"Освежитель воздуха на панель NANO черный лед",1,230,230]
[6,"Освежитель воздуха подвесной BE FRESH сухой антитабак",5,30,150]
[6,"Освежитель воздуха подвесной CARDS-Дама черви сухой тутти-фрутти",1,22,22]
[6,"Освежитель воздуха подвесной CARDS-Король пик сухой шоколад",1,22,22]
[6,"Освежитель воздуха подвесной CARDS-Туз пик сухой новая машина",1,22,22]
[15,"Освежитель воздуха подвесной FOUETTE Aroma Box меловой черный лед",1,53,53]
[6,"Освежитель воздуха подвесной FRESHCO COFFEE мешочек вишня с миндалем",1,141,141]
[6,"Освежитель воздуха подвесной FRESHCO COFFEE мешочек капучино",1,141,141]
[6,"Освежитель воздуха подвесной ДЕВУШКИ сухой апельсин",1,42,42]
[6,"Освежитель воздуха подвесной ДЕВУШКИ сухой клубника",1,42,42]
[6,"Освежитель воздуха подвесной ДЕВУШКИ сухой морская свежесть",1,42,42]
[6,"Освежитель воздуха подвесной ДЕВУШКИ сухой персик",1,42,42]
[6,"Освежитель воздуха подвесной ДЕВУШКИ сухой шоколад",1,42,42]
[6,"Освежитель воздуха подвесной ТЕРРИТОРИЯ МУЖЧИН сухой океанский бриз",1,41,41]
[6,"Освежитель воздуха-спрей SPRAY CLASSIC антитабак",1,191,191]
[6,"Освежитель воздуха-спрей SPRAY CLASSIC зеленый чай",1,191,191]
[6,"Освежитель воздуха-спрей SPRAY CLASSIC новая машина",1,191,191]
[6,"Освежитель воздуха-спрей SPRAY CLASSIC черная линия",1,191,191]

{"sheet":"стс","index":15,"n_rows":67,"n_cols":5,"rows_kept":67,"cut":false,"hidden":false,"merged":[]}
[0,"Товарный чек №       от                         "]
[null,"Отпущен товар за наличный расчет на сумму:",null,{"$f":"SUM(E:E)","v":20203}]
[null,"Скидка составила:",null,{"$f":"ROUNDUP(D2*A1/100,0)","v":0}]
[null,"Стоймость доставки:",null,0]
[null,"Предоплата:",null,0]
[null,"Задолженность:",null,0]
[null,"Итого к оплате:",null,{"$f":"D2+D4+D6-D3-D5","v":20203}]
[null,"Количество мест:"]
["№","Наименование","кол","цена","сумма"]
["б","…ОБМЕН-Решетка радиатора 2110 хром",1,0,{"$f":"D10*C10","v":0}]
[6,"А/лампа 24-1,2 б/ц NORD YADA 1 LED конус синяя 900443",10,8,80]
[11,"А/лампа 24-1,2 б/ц МАЯК",20,6,120]
[11,"А/лампа 24-1,2 б/ц МАЯК 1 LED белая (уп-10)",10,10,100]
[1,"А/лампа H11 12-55 EAGLEYE Plazma xenon (2 шт)",1,380,380]
[1,"А/лампа H11 12-55 MTF-Platinum (2 шт)",1,800,800]
[1,"А/лампа H7 12-55+80% MTF-Argentum (2 шт)",1,765,765]
[1,"А/лампа H7 12-55+80% MTF-Palladium (2 шт)",1,713,713]
[5,"Бегунок 2101 AT 030",1,64,64]
[8,"Выключатель печки 2123",1,75,75]
[8,"Датчик авар.давл. масла 1118 BAUTLER",1,72,72]
[8,"Датчик авар.давл. масла 2101 BAUTLER",2,50,100]
[23,"Детское автомобильное кресло КРОХА бескаркасное светло-серый",1,552,552]
[17,"Замок двери внутренний 2108 передний левый",1,144,144]
[17,"Замок зажигания 2110 ДААЗ н/о",1,684,684]
[5,"Клапана 2101 (8шт) Самара",1,1110,1110]
[7,"Ключ комбинированный 32х32 АВТОТОРГ 4032",1,199,199]
[6,"Ключ комбинированный 32х32 МАСТЕР КЛЮЧ 512032",1,333,333]
[6,"Ключ-головка 11мм 1/2 короткая шестигранная FORCE 54511",1,69,69]
[7,"Ключ-переходник 3/8(п) на 1/2(м) FORCE 80934",2,60,120]
[17,"Колодки 2121 перед.торм. АВТОВАЗ",1,229,229]
[16,"Колпачки маслоотраж. 2101 ROSTECO (8 шт)",1,211,211]
[17,"Колпачки маслоотраж. 2101 АВТОВАЗ (8 шт)",1,122,122]
[2,"Крышка масл.горловины 2101 ЕВРОДЕТАЛЬ",2,36,72]
[2,"Крышка масл.горловины 2123 ВИС",1,45,45]
[2,"Крышка масл.горловины ГАЗ дв.402 ЕВРОДЕТАЛЬ",1,33,33]
[22,"Крышка распред.зажигания 2101 СОАТЭ 038",1,126,126]
[5,"Крышка распред.зажигания 2101 ЦИТРОН 329",1,127,127]
[17,"Опора шаровая 1118 БЗАК пыльник",2,245,490]
[17,"Опора шаровая 2101 верх. АВТОВАЗ с крепежом",2,289,578]
[17,"Опора шаровая 2101 нижн. АВТОВАЗ с крепежом",2,289,578]
[17,"Опора шаровая 2121 (2в+2н) БЗАК",1,811,811]
[12,"Патрубки 2121 отопителя ВПТ (2 шт)",1,50,{"$f":"D42*C42","v":50}]
[12,"Патрубки 2121 радиатора ВПТ (4 шт)",1,245,245]
[2,"Подш.генератора 2110 СПЗ (6202+6303)",1,142,142]
[5,"Прикуриватель 2106 Тольятти в сборе",3,115,345]
[16,"Прикуриватель 2110 САЛЮТ-АВТООПТ в сборе",3,149,447]
[18,"Прокладки 2101 двигателя (76,0) ВАТИ-Эконом полн.набор",1,204,204]
[18,"Прокладки 2101 двигателя (79,0) ВАТИ-Эконом полн.набор",1,204,204]
[16,"Радиатор 2110 отопит.алюм. LUZAR 0110",1,589,589]
[6,"Реле 495.3747 поворота 2108 ЭМИ 644.3777",5,57,285]
[2,"Реле контроля целостности ламп 2110",3,128,384]
[16,"Ремкомплект ГРМ 2190 (ремень,ролик) TRIALLI",1,1204,1204]
[4,"Ремкомплект карбюратора 2107 ЧААЗ",1,83,83]
[5,"Ремкомплект карбюратора 2107-20 ПЕКАР",1,274,274]
[16,"Решетка радиатора 2107 Тольятти хром",1,264,264]
[5,"Ролик 2170 натяжения ремня AT 6120-270В",1,486,486]
[16,"Сальник 2110 привода левый БРТ 35*57*9",5,34,170]
[16,"Сальник 2110 привода правый БРТ 35*57*9",5,34,170]
[16,"Сальник 2110 привода универс. ROSTECO",3,59,177]
[17,"Свеча зажигания 2110 1,5 V16 АВТОВАЗ (4 шт) АУ17ДВРМ",2,204,408]
[5,"Свеча зажигания 2110 1,5 V8 NGK (4 шт) BPR6ES V-LINE-13",2,357,714]
[6,"Съемник амортизатора 2108 Барнаул столбик",2,89,178]
[7,"Съемник стопор.кольца 200мм на сжатие прямой TOYA 43031",1,186,186]
[15,"Ходовые огни KS-008-2",1,182,182]
[17,"Цилиндр 2108 главный торм. АВТОВАЗ",1,656,656]
[5,"Шрус 2108 наружный WEBER",2,719,1438]
[7,"Щетка стеклоочистителя 50см ALCA 110",8,102,816]

{"sheet":"кор","index":16,"n_rows":9,"n_cols":5,"rows_kept":9,"cut":false,"hidden":false,"merged":[]}
[0,"Товарный чек №       от                         "]
[null,"Отпущен товар за наличный расчет на сумму:",null,{"$f":"SUM(E:E)","v":0}]
[null,"Скидка составила:",null,{"$f":"ROUNDUP(D2*A1/100,0)","v":0}]
[null,"Стоймость доставки:",null,0]
[null,"Предоплата:",null,0]
[null,"Задолженность:",null,0]
[null,"Итого к оплате:",null,{"$f":"D2+D4+D6-D3-D5","v":0}]
[null,"Количество мест:"]
["№","Наименование","кол","цена","сумма"]

{"sheet":"мст","index":17,"n_rows":32,"n_cols":5,"rows_kept":32,"cut":false,"hidden":false,"merged":[]}
[0,"Товарный чек №       от                         "]
[null,"Отпущен товар за наличный расчет на сумму:",null,{"$f":"SUM(E:E)","v":52883}]
[null,"Скидка составила:",null,{"$f":"ROUNDUP(D2*A1/100,0)","v":0}]
[null,"Стоймость доставки:",null,0]
[null,"Предоплата:",null,0]
[null,"Задолженность:",null,0]
[null,"Итого к оплате:",null,{"$f":"D2+D4+D6-D3-D5","v":52883}]
[null,"Количество мест:"]
["№","Наименование","кол","цена","сумма"]
[1,"А/лампа H4 12-60/55-43+30% PHILIPS Premium 12342",10,112,{"$f":"D10*C10","v":1120}]
[6,"Ветровик 2108 AZARD накладной",1,270,270]
[16,"Генератор 2110 СТАРТВОЛЬТ (120А) LG 0110",1,3629,3629]
[2,"Колодки 2108 перед.торм. ЕВРОДЕТАЛЬ",5,198,990]
[16,"Крышка расширит.бачка 2108 LUZAR 0108",50,76,3800]
[17,"Наконечник 2110 рул.тяги БЗАК (2 шт)",1,526,526]
[16,"Насос водяной 2170 LUZAR 0127",2,703,1406]
[2,"Насос омывателя 2110 FENOX 52 005 О7",20,117,2340]
[16,"Патрубки 2105 радиатора (алюминий) LUZAR (4 шт) 0105",1,342,342]
[16,"Патрубки 2108 радиатора LUZAR (4 шт) 0108",3,371,1113]
[16,"Радиатор 2101 отопит.алюм. LUZAR 0101",2,542,1084]
[16,"Радиатор 2106 отопит.алюм. LUZAR 0106",2,580,1160]
[16,"Радиатор 2170 охлажд.алюм. LUZAR 0127",1,1463,1463]
[2,"Реле втягивающее 2101 н/о ELDIX РДС",1,549,549]
[2,"Реле втягивающее 2101 с/о ELDIX РС",1,529,529]
[2,"Реле втягивающее 2108 ELDIX РДС",1,549,549]
[2,"Реле втягивающее 2110 ELDIX",1,586,586]
[16,"Ролик 2108 натяжения ремня TRIALLI",3,329,987]
[2,"Спойлер капота (мухобойка) 2107 AZARD",2,321,642]
[16,"Сцепление 2101 TRIALLI в сборе",5,1843,9215]
[16,"Сцепление 2108 TRIALLI в сборе",5,1815,9075]
[16,"Сцепление 2110 TRIALLI в сборе",5,1880,9400]
[2,"Эл.двигат.вентилят.2106/08 LUZAR 0103",2,1054,2108]

{"sheet":"тищ","index":18,"n_rows":9,"n_cols":5,"rows_kept":9,"cut":false,"hidden":false,"merged":[]}
[0,"Товарный чек №       от                         "]
[null,"Отпущен товар за наличный расчет на сумму:",null,{"$f":"SUM(E:E)","v":0}]
[null,"Скидка составила:",null,{"$f":"ROUNDUP(D2*A1/100,0)","v":0}]
[null,"Стоймость доставки:",null,0]
[null,"Предоплата:",null,0]
[null,"Задолженность:",null,0]
[null,"Итого к оплате:",null,{"$f":"D2+D4+D6-D3-D5","v":0}]
[null,"Количество мест:"]
["№","Наименование","кол","цена","сумма"]

{"sheet":"гор","index":19,"n_rows":9,"n_cols":5,"rows_kept":9,"cut":false,"hidden":false,"merged":[]}
[0,"Товарный чек №       от                         "]
[null,"Отпущен товар за наличный расчет на сумму:",null,{"$f":"SUM(E:E)","v":0}]
[null,"Скидка составила:",null,{"$f":"ROUNDUP(D2*A1/100,0)","v":0}]
[null,"Стоймость доставки:",null,0]
[null,"Предоплата:",null,0]
[null,"Задолженность:",null,0]
[null,"Итого к оплате:",null,{"$f":"D2+D4+D6-D3-D5","v":0}]
[null,"Количество мест:"]
["№","Наименование","кол","цена","сумма"]

{"sheet":"вас","index":20,"n_rows":45,"n_cols":5,"rows_kept":45,"cut":false,"hidden":false,"merged":[]}
[0,"Товарный чек №       от                         "]
[null,"Отпущен товар за наличный расчет на сумму:",null,{"$f":"SUM(E:E)","v":26229}]
[null,"Скидка составила:",null,{"$f":"ROUNDUP(D2*A1/100,0)","v":0}]
[null,"Стоймость доставки:",null,0]
[null,"Предоплата:",null,0]
[null,"Задолженность:",null,0]
[null,"Итого к оплате:",null,{"$f":"D2+D4+D6-D3-D5","v":26229}]
[null,"Количество мест:"]
["№","Наименование","кол","цена","сумма"]
[6,"..СЧЕТ-Зарядное ус-во ЗУ-75М4 ОБОРОНПРИБОР 12В 6А",1,1242,{"$f":"D10*C10","v":1242}]
[22,"Вилка КПП 2108 3-4 передачи Тольятти",3,168,504]
[2,"Вилка сцепления 2110 АВТОВАЗ",2,301,602]
[6,"Выключатель аварийной сигнализации 2115",1,100,100]
[17,"Диск сцепл.ведомый 2110 ВИС",1,733,733]
[5,"Диск сцепл.ведомый 2110 НАЧАЛО",1,495,495]
[16,"Зеркало 2110 наружнее левое РЕГИОН а/блик",1,352,352]
[17,"Зеркало 2110 наружнее правое ДААЗ",1,515,515]
[16,"Зеркало 2110 наружнее правое РЕГИОН а/блик",1,352,352]
[16,"Клапана 2101 (8шт) SM",1,990,990]
[5,"Колодки 2101 задн.торм. НАЧАЛО",3,363,1089]
[5,"Колодки 2108 задн.торм. НАЧАЛО",5,327,1635]
[17,"Насос водяной 2123 АВТОВАЗ",1,757,757]
[5,"Насос водяной 2123 КААЗ",1,558,558]
[16,"Насос водяной 2123 ТЗА",1,806,806]
[5,"Провод в/в 21214 BRISK силикон BR013S",1,363,363]
[16,"Провод в/в 21214 SLON силикон",1,578,578]
[16,"Прокладка 2108 крышки клапанов БРТ",10,72,720]
[5,"Пружина подвески 2102 ОРЕЛ задн. (2 шт)",1,644,644]
[2,"Ремень генератора ГАЗ дв.406 с ГУР БРТ 6PK1370",1,364,364]
[16,"Ремень генератора ГАЗ-3302 дв.УЗАМ БРТ зубч. 900",2,112,224]
[4,"Сальник 2101 редуктора задн.моста БРТ 35,8*68*12",10,23,230]
[6,"Сателлиты в сборе 2108 АВТОВАЗ",1,896,896]
[19,"Смазка WD-40 420 мл",2,336,672]
[2,"Термостат 2101 FENOX TS 001 O7",2,277,554]
[5,"Термостат 2101 METAL INCAR пластмас.",2,299,598]
[8,"Термостат 2108 BAUTLER",2,298,596]
[2,"Цилиндр 1111 передний левый FENOX СТ4501 ЗЧ С2",1,1361,1361]
[2,"Цилиндр 2101 перед.внут.лев. FENOX X4816 С1 в упак.",1,366,366]
[2,"Цилиндр 2101 перед.внут.прав. БЕЛМАГ",1,364,364]
[5,"Цилиндр 2105 задн.торм. БЗАК",10,225,2250]
[17,"Цилиндр 2108 передний левый FENOX X4810 С1 в упак.",2,574,1148]
[17,"Цилиндр 2121 передний левый FENOX X3022 С1/С2",1,1074,1074]
[2,"Цилиндр 2123 рабочий сцепл. АВТОАГРЕГАТ",1,576,576]
[2,"Цилиндр 2123 рабочий сцепл. БЕЛМАГ",1,577,577]
[2,"Цилиндр ГАЗ-3302 задн.торм. FENOX K3210 С3 в упак.",4,336,1344]

{"sheet":"ги","index":21,"n_rows":57,"n_cols":5,"rows_kept":57,"cut":false,"hidden":false,"merged":[]}
[0,"Товарный чек №       от                         "]
[null,"Отпущен товар за наличный расчет на сумму:",null,{"$f":"SUM(E:E)","v":17650}]
[null,"Скидка составила:",null,{"$f":"ROUNDUP(D2*A1/100,0)","v":0}]
[null,"Стоймость доставки:",null,0]
[null,"Предоплата:",null,0]
[null,"Задолженность:",null,0]
[null,"Итого к оплате:",null,{"$f":"D2+D4+D6-D3-D5","v":17650}]
[null,"Количество мест:"]
["№","Наименование","кол","цена","сумма"]
[15,"А/лампа H1 12-100 МАЯК 52150 (уп-10)",10,43,{"$f":"D10*C10","v":430}]
[5,"Антифриз 1л зеленый Дзержинск",5,70,350]
[19,"Антифриз 1л красный AGA",4,135,540]
[19,"Антифриз 1л красный Дзержинск",10,85,850]
[2,"Герметик-прокладка АВТОСИЛ 65г",10,30,300]
[12,"Глушитель 2115 Новгород",1,670,670]
[15,"Жидкость омывателя АСТРОХИМ -50°С 1л концетрат",2,148,296]
[19,"Жидкость омывателя СИБИРЬ 5л незамерзающая",4,95,380]
[4,"Заглушка пола 2101 большая БРТ",10,8,80]
[4,"Заглушка пола 2108 большая БРТ",10,10,100]
[11,"Зажим средний (крокодильчики) 2шт",10,20,200]
[5,"Замок зажигания 2101 РЕКАРДО",1,276,276]
[11,"Изолента белая Россия",2,10,20]
[11,"Изолента красная Россия",2,10,20]
[19,"Изолента черная 19мм*20м TERMINATOR",3,47,141]
[11,"Изолента черная Россия",2,10,20]
[19,"Клей холод. сварка АЛМАЗ авто-30гр.",10,28.000000000000004,280.00000000000006]
[15,"Клей холод. сварка АЛМАЗ универсальный-30гр.",5,29,145]
[19,"Ключ свечной 16 трубка ЕРМАК 766-126",5,79,395]
[18,"Колодки 2108 задн.торм. DAFMI ДА140",1,405,405]
[5,"Колодки 2108 задн.торм. НАЧАЛО",1,327,327]
[19,"Масло мотор.п/синт. 10W-40 SHELL Helix 1л",3,260,780]
[19,"Масло мотор.п/синт. 10W-40 SHELL Helix 4л",1,790,790]
[19,"Масло мотор.синт. 5W-40 SHELL Helix 4л",1,1200,1200]
[5,"Освежитель воздуха на дефлектор ALIBI SENSO лимон",1,76,76]
[19,"Освежитель воздуха подвесной AREON гелевый клубника",1,50,50]
[19,"Освежитель воздуха подвесной AREON гелевый персик",2,50,100]
[19,"Освежитель воздуха подвесной AREON гелевый черный лед",2,50,100]
[15,"Освежитель воздуха подвесной SKYWAY дер.бочонок арбуз",1,88,88]
[15,"Освежитель воздуха подвесной SKYWAY дер.бочонок бабл гам",1,88,88]
[6,"Освежитель воздуха-подвеска ФУТБОЛЬНЫЙ МЯЧ океанский бриз",1,91,91]
[15,"Предохранители 2108 флажковые AIRLINE AFU-S-03",15,30,450]
[4,"Прокладка 2108 масл.картера САМОРИМ пробка",3,89,267]
[16,"Ремень генератора 2101 LUZAR зубч. 944",4,86,344]
[5,"Ролик 2108 натяжения ремня AT железный 830900S",2,282,564]
[17,"Свеча зажигания 2108 FENOX (4 шт) S17 131.1",1,179,179]
[17,"Свеча зажигания 2108 АВТОВАЗ (4 шт) А17ДВРМ",1,161,161]
[19,"Свеча зажигания 2112 1,6 V16 BRISK (4 шт) SILVER DR15YS",2,290,580]
[19,"Тосол 10л Дзержинск",2,482,964]
[19,"Тосол 3л Дзержинск",4,183,732]
[19,"Тосол 5л Дзержинск",3,254.99999999999997,764.99999999999989]
[16,"Трос газа 2108 РЕКАРДО",3,84,252]
[5,"Фильтр топливный 2101 AT",10,22,220]
[16,"Фильтр топливный 2110 САЛЮТ",3,158,474]
[5,"Шрус 2108 наружный WEBER",2,719,1438]
[7,"Щетка стеклоочистителя 48см ALCA 109",4,102,408]
[19,"Электролит 1,28 1,5л",6,35,210]
[6,"Эмблема облицовки радиатора 2110",3,18,54]

{"sheet":"сел","index":22,"n_rows":45,"n_cols":5,"rows_kept":45,"cut":false,"hidden":false,"merged":[]}
[0,"Товарный чек №       от                         "]
[null,"Отпущен товар за наличный расчет на сумму:",null,{"$f":"SUM(E:E)","v":25511}]
[null,"Скидка составила:",null,{"$f":"ROUNDUP(D2*A1/100,0)","v":0}]
[null,"Стоймость доставки:",null,0]
[null,"Предоплата:",null,0]
[null,"Задолженность:",null,0]
[null,"Итого к оплате:",null,{"$f":"D2+D4+D6-D3-D5","v":25511}]
[null,"Количество мест:"]
["№","Наименование","кол","цена","сумма"]
[6,"..СЧЕТ-Адаптер ремня безопасности APV детский (винил) красный",1,137,{"$f":"D10*C10","v":137}]
[6,"..СЧЕТ-Адаптер ремня безопасности APV детский (оксфорд) черный",1,95,95]
[6,"..СЧЕТ-Антирадар AIRLINE ARD-N-03",1,1072,1072]
[6,"..СЧЕТ-Оплетка руля M кожа SENATOR Texas черная",1,542,542]
[6,".РЕАЛ-Антирадар SQ 220",1,1316,1316]
[6,".РЕАЛ-Компрессор ZORK 30л/мин без упак.",1,521,521]
[1,"А/лампа H1 12-55 ЧЕМПИОН",20,29,580]
[1,"А/лампа H3 12-55 ЧЕМПИОН",20,29,580]
[1,"А/лампа H4 12-60/55-43 ЧЕМПИОН",10,56,560]
[1,"А/лампа H7 12-55 ЧЕМПИОН",20,57,1140]
[16,"Вакуумный усилитель 2108 АВТО-ГРАД",1,1029,1029]
[12,"Глушитель 2101 Новгород",2,566,1132]
[16,"Замок зажигания 2101 Тольятти",3,165,495]
[2,"Замок зажигания 2108 ДААЗ с/о",1,550,550]
[2,"Накладка бампера 2106 (2 шт)",5,25,125]
[5,"Насос водяной 2112 под ТЗА",1,564,564]
[16,"Подш.ступ. 2108 задн. TRIALLI",5,348,1740]
[16,"Радиатор 2105-07 охлажд.алюм.универс. LUZAR 01070",1,1292,1292]
[2,"Радиатор 2106 отопит.алюм. FENOX RO 0003 O7",1,504,504]
[16,"Радиатор 2110 охлажд.алюм.универс. LUZAR 01120",1,1292,1292]
[16,"Регулятор холостого хода 21214 КЗТА",1,473,473]
[17,"Резонатор 2101 АВТОВАЗ",2,434,868]
[9,"Ремень ГРМ 2108 LYNX 111CL19",5,209,1045]
[5,"Ролик 2108 натяжения ремня AT железный 830900S",2,282,564]
[6,"Ролик 2108 натяжения ремня LGR",2,253,506]
[8,"Салфетка-замша большая KANEBO",5,114,570]
[5,"Салфетка-замша малая KANEBO",5,58,290]
[19,"Свеча зажигания 2101 FINWHALE (4 шт) F501",3,193,579]
[2,"Свеча зажигания 2101 ТРЕК (4 шт) А17ДВМ",1,163,163]
[16,"Стартер 2108 СТАРТВОЛЬТ редукторный LSt 0115",1,2565,2565]
[5,"Трос буксировочный 5т веревка Барнаул с крюками",2,167,334]
[7,"Трос буксировочный 5т лента Барнаул с крюками",2,134,268]
[2,"Фильтр масляный 2105 БЕЛМАГ",5,96,480]
[8,"Фильтр масляный 2108 МАNN W914/2",5,165,825]
[19,"Фильтр масляный 2108 САЛЮТ",2,120,240]
[5,"Фильтр масляный 2108 ФОРВАРД",5,95,475]

{"sheet":"мск","index":23,"n_rows":9,"n_cols":5,"rows_kept":9,"cut":false,"hidden":false,"merged":[]}
[0,"Товарный чек №       от                         "]
[null,"Отпущен товар за наличный расчет на сумму:",null,{"$f":"SUM(E:E)","v":0}]
[null,"Скидка составила:",null,{"$f":"ROUNDUP(D2*A1/100,0)","v":0}]
[null,"Стоймость доставки:",null,0]
[null,"Предоплата:",null,0]
[null,"Задолженность:",null,0]
[null,"Итого к оплате:",null,{"$f":"D2+D4+D6-D3-D5","v":0}]
[null,"Количество мест:"]
["№","Наименование","кол","цена","сумма"]

{"sheet":"шад","index":24,"n_rows":9,"n_cols":5,"rows_kept":9,"cut":false,"hidden":false,"merged":[]}
[0,"Товарный чек №       от                         "]
[null,"Отпущен товар за наличный расчет на сумму:",null,{"$f":"SUM(E:E)","v":0}]
[null,"Скидка составила:",null,{"$f":"ROUNDUP(D2*A1/100,0)","v":0}]
[null,"Стоймость доставки:",null,0]
[null,"Предоплата:",null,0]
[null,"Задолженность:",null,0]
[null,"Итого к оплате:",null,{"$f":"D2+D4+D6-D3-D5","v":0}]
[null,"Количество мест:"]
["№","Наименование","кол","цена","сумма"]